[Event "Titled Tuesday Blitz December 20 Early 2022"]
[White "Harry_Rakkel"]
[Black "Borges Matos, Juan"]
[BlackFideId "3500160"]
[WhiteElo "2611"]
[BlackElo "2409"]
[Result "1/2-1/2"]
[Round "01"]
[TimeControl "180+2"]
[Date "2022.12.20"]
[WhiteClock "0:00:09"]
[BlackClock "0:00:15"]

1. e4 {[%clk 0:02:57]}  e6 {[%clk 0:03:00]} 2. d4 {[%clk 0:02:54]}  d5 {[%clk 0:03:00]} 3. Nc3 {[%clk 0:02:52]}  Nf6 {[%clk 0:03:00]} 4. e5 {[%clk 0:02:50]}  Nfd7 {[%clk 0:03:00]} 5. Nce2 {[%clk 0:02:50]}  c5 {[%clk 0:03:00]} 6. c3 {[%clk 0:02:50]}  Nc6 {[%clk 0:03:00]} 7. f4 {[%clk 0:02:49]}  f6 {[%clk 0:02:59]} 8. Nf3 {[%clk 0:02:46]}  cxd4 {[%clk 0:02:58]} 9. cxd4 {[%clk 0:02:45]}  Bb4+ {[%clk 0:02:58]} 10. Bd2 {[%clk 0:02:43]}  Qa5 {[%clk 0:02:53]} 11. a3 {[%clk 0:02:40]}  Bxd2+ {[%clk 0:02:52]} 12. Qxd2 {[%clk 0:02:39]}  Qxd2+ {[%clk 0:02:50]} 13. Kxd2 {[%clk 0:02:39]}  b6 {[%clk 0:02:35]} 14. b4 {[%clk 0:02:27]}  Ba6 {[%clk 0:02:27]} 15. Nc3 {[%clk 0:02:06]}  Bxf1 {[%clk 0:02:11]} 16. Rhxf1 {[%clk 0:02:05]}  Ke7 {[%clk 0:02:07]} 17. Rae1 {[%clk 0:01:26]}  f5 {[%clk 0:02:05]} 18. h3 {[%clk 0:01:24]}  h5 {[%clk 0:01:54]} 19. Rc1 {[%clk 0:01:23]}  a5 {[%clk 0:01:50]} 20. Nxd5+ {[%clk 0:01:11]}  exd5 {[%clk 0:01:49]} 21. Rxc6 {[%clk 0:01:11]}  axb4 {[%clk 0:01:49]} 22. axb4 {[%clk 0:01:11]}  Ra2+ {[%clk 0:01:49]} 23. Rc2 {[%clk 0:01:11]}  Rha8 {[%clk 0:01:39]} 24. Rc1 {[%clk 0:01:10]}  Nf8 {[%clk 0:01:37]} 25. Rxa2 {[%clk 0:01:02]}  Rxa2+ {[%clk 0:01:36]} 26. Rc2 {[%clk 0:01:02]}  Ra4 {[%clk 0:01:24]} 27. Kc3 {[%clk 0:00:44]}  Ne6 {[%clk 0:01:21]} 28. Kb3 {[%clk 0:00:42]}  Ra1 {[%clk 0:01:19]} 29. b5 {[%clk 0:00:32]}  Rd1 {[%clk 0:01:10]} 30. Rc6 {[%clk 0:00:29]}  Rd3+ {[%clk 0:00:44]} 31. Kc2 {[%clk 0:00:21]}  Rxf3 {[%clk 0:00:24]} 32. gxf3 {[%clk 0:00:20]}  Nxd4+ {[%clk 0:00:24]} 33. Kc3 {[%clk 0:00:21]}  Nxc6 {[%clk 0:00:24]} 34. bxc6 {[%clk 0:00:22]}  b5 {[%clk 0:00:23]} 35. h4 {[%clk 0:00:20]}  g6 {[%clk 0:00:21]} 36. Kd4 {[%clk 0:00:19]}  b4 {[%clk 0:00:20]} 37. Kxd5 {[%clk 0:00:16]}  b3 {[%clk 0:00:20]} 38. e6 {[%clk 0:00:14]}  b2 {[%clk 0:00:20]} 39. c7 {[%clk 0:00:14]}  b1=Q {[%clk 0:00:20]} 40. c8=Q {[%clk 0:00:14]}  Qd3+ {[%clk 0:00:20]} 41. Kc6 {[%clk 0:00:10]}  Qxf3+ {[%clk 0:00:18]} 42. Kb6 {[%clk 0:00:10]}  Qb3+ {[%clk 0:00:18]} 43. Ka5 {[%clk 0:00:08]}  Qa3+ {[%clk 0:00:16]} 44. Kb5 {[%clk 0:00:08]}  Qb3+ {[%clk 0:00:16]} 45. Ka5 {[%clk 0:00:09]}  Qa3+ {[%clk 0:00:16]} 46. Kb5 {[%clk 0:00:08]}  Qb3+ {[%clk 0:00:15]} 47. Ka5 {[%clk 0:00:09]} 1/2-1/2


[Site "https://www.chess.com"]

[Event "Titled Tuesday Blitz December 20 Early 2022"]
[White "HashtagChess"]
[Black "Truequitos"]
[WhiteElo "1812"]
[BlackElo "2536"]
[Result "0-1"]
[Round "01"]
[TimeControl "180+2"]
[Date "2022.12.20"]
[WhiteClock "0:00:39"]
[BlackClock "0:01:38"]

1. e4 {[%clk 0:02:58]}  e6 {[%clk 0:02:52]} 2. d4 {[%clk 0:02:56]}  c5 {[%clk 0:02:52]} 3. Nf3 {[%clk 0:02:54]}  a6 {[%clk 0:02:51]} 4. Nc3 {[%clk 0:02:48]}  b5 {[%clk 0:02:51]} 5. a3 {[%clk 0:02:22]}  Bb7 {[%clk 0:02:50]} 6. dxc5 {[%clk 0:02:08]}  Bxc5 {[%clk 0:02:49]} 7. Bd3 {[%clk 0:02:07]}  Nf6 {[%clk 0:02:48]} 8. O-O {[%clk 0:02:07]}  O-O {[%clk 0:02:48]} 9. Bg5 {[%clk 0:02:04]}  h6 {[%clk 0:02:46]} 10. Bh4 {[%clk 0:02:02]}  Be7 {[%clk 0:02:47]} 11. Qe2 {[%clk 0:01:56]}  Nc6 {[%clk 0:02:43]} 12. Rad1 {[%clk 0:01:55]}  Qb6 {[%clk 0:02:42]} 13. e5 {[%clk 0:01:47]}  Ne8 {[%clk 0:02:33]} 14. Bxe7 {[%clk 0:01:45]}  Nxe7 {[%clk 0:02:34]} 15. Be4 {[%clk 0:01:43]}  Qc7 {[%clk 0:02:15]} 16. Bxb7 {[%clk 0:01:35]}  Qxb7 {[%clk 0:02:16]} 17. Ne4 {[%clk 0:01:28]}  Nd5 {[%clk 0:02:12]} 18. g3 {[%clk 0:01:19]}  Rc8 {[%clk 0:02:11]} 19. Nd4 {[%clk 0:01:17]}  Rc4 {[%clk 0:02:06]} 20. c3 {[%clk 0:01:16]}  f5 {[%clk 0:01:54]} 21. exf6 {[%clk 0:01:04]}  Ndxf6 {[%clk 0:01:54]} 22. Nxf6+ {[%clk 0:00:58]}  Nxf6 {[%clk 0:01:50]} 23. Nf3 {[%clk 0:00:48]}  Re4 {[%clk 0:01:42]} 24. Qd3 {[%clk 0:00:40]}  Ng4 {[%clk 0:01:41]} 25. Nd4 {[%clk 0:00:39]}  Ne5 {[%clk 0:01:39]} 26. Qd2 {[%clk 0:00:39]}  Rxd4 {[%clk 0:01:38]} 0-1


[Site "https://www.chess.com"]

[Event "Titled Tuesday Blitz December 20 Early 2022"]
[White "Herrera Figueroa, Amado Ama"]
[Black "Manish Anto Cristiano F"]
[WhiteFideId "5137470"]
[BlackFideId "25095927"]
[WhiteElo "1496"]
[BlackElo "2485"]
[Result "1-0"]
[Round "01"]
[TimeControl "180+2"]
[Date "2022.12.20"]
[WhiteClock "0:01:04"]
[BlackClock "0:01:53"]

1. Nf3 {[%clk 0:03:00]}  Nf6 {[%clk 0:02:58]} 2. g3 {[%clk 0:03:01]}  g6 {[%clk 0:02:59]} 3. b3 {[%clk 0:03:00]}  Bg7 {[%clk 0:03:00]} 4. Bb2 {[%clk 0:03:00]}  d6 {[%clk 0:03:00]} 5. d4 {[%clk 0:03:01]}  O-O {[%clk 0:03:00]} 6. Bg2 {[%clk 0:03:01]}  Nc6 {[%clk 0:03:00]} 7. O-O {[%clk 0:03:01]}  Bf5 {[%clk 0:02:58]} 8. c4 {[%clk 0:03:01]}  Qd7 {[%clk 0:02:58]} 9. Nc3 {[%clk 0:03:01]}  Ne4 {[%clk 0:02:57]} 10. Rc1 {[%clk 0:02:58]}  Nxc3 {[%clk 0:02:57]} 11. Bxc3 {[%clk 0:02:59]}  Be4 {[%clk 0:02:57]} 12. d5 {[%clk 0:02:59]}  Bxf3 {[%clk 0:02:53]} 13. Bxf3 {[%clk 0:02:47]}  Ne5 {[%clk 0:02:52]} 14. Bg2 {[%clk 0:02:47]}  Ng4 {[%clk 0:02:49]} 15. Bxg7 {[%clk 0:02:40]}  Kxg7 {[%clk 0:02:50]} 16. Qd4+ {[%clk 0:02:41]}  Nf6 {[%clk 0:02:50]} 17. e4 {[%clk 0:02:40]}  a6 {[%clk 0:02:37]} 18. e5 {[%clk 0:02:38]}  dxe5 {[%clk 0:02:36]} 19. Qxe5 {[%clk 0:02:39]}  Qd6 {[%clk 0:02:36]} 20. Qe3 {[%clk 0:02:30]}  b6 {[%clk 0:02:31]} 21. Rfe1 {[%clk 0:02:29]}  Rfe8 {[%clk 0:02:30]} 22. c5 {[%clk 0:02:25]}  bxc5 {[%clk 0:02:30]} 23. Qxc5 {[%clk 0:02:26]}  Rac8 {[%clk 0:02:27]} 24. h3 {[%clk 0:02:14]}  Nd7 {[%clk 0:02:21]} 25. Qd4+ {[%clk 0:02:07]}  Qf6 {[%clk 0:02:20]} 26. Qxf6+ {[%clk 0:01:59]}  Nxf6 {[%clk 0:02:18]} 27. Rc6 {[%clk 0:01:59]}  Red8 {[%clk 0:02:16]} 28. Rxe7 {[%clk 0:01:53]}  Nxd5 {[%clk 0:02:16]} 29. Bxd5 {[%clk 0:01:53]}  Rxd5 {[%clk 0:02:16]} 30. Rcxc7 {[%clk 0:01:53]}  Rxc7 {[%clk 0:02:16]} 31. Rxc7 {[%clk 0:01:54]}  Rd2 {[%clk 0:02:15]} 32. a4 {[%clk 0:01:53]}  Rb2 {[%clk 0:02:14]} 33. Rb7 {[%clk 0:01:53]}  a5 {[%clk 0:02:14]} 34. Rb5 {[%clk 0:01:53]}  h5 {[%clk 0:02:14]} 35. Kg2 {[%clk 0:01:53]}  Kh6 {[%clk 0:02:13]} 36. h4 {[%clk 0:01:51]}  f6 {[%clk 0:02:12]} 37. Kf3 {[%clk 0:01:50]}  g5 {[%clk 0:02:11]} 38. Ke3 {[%clk 0:01:49]}  Kg6 {[%clk 0:02:11]} 39. f3 {[%clk 0:01:40]}  gxh4 {[%clk 0:02:06]} 40. gxh4 {[%clk 0:01:41]}  Kf7 {[%clk 0:02:06]} 41. Kf4 {[%clk 0:01:38]}  Kg6 {[%clk 0:02:05]} 42. Kg3 {[%clk 0:01:38]}  Kh6 {[%clk 0:02:04]} 43. Kf4 {[%clk 0:01:37]}  Kg6 {[%clk 0:02:05]} 44. Ke3 {[%clk 0:01:37]}  Kg7 {[%clk 0:02:04]} 45. Kd4 {[%clk 0:01:32]}  Kg6 {[%clk 0:02:03]} 46. Kc5 {[%clk 0:01:26]}  Rf2 {[%clk 0:01:57]} 47. Rxa5 {[%clk 0:01:23]}  Rxf3 {[%clk 0:01:57]} 48. Rb5 {[%clk 0:01:24]}  Kf5 {[%clk 0:01:56]} 49. a5 {[%clk 0:01:22]}  Rf1 {[%clk 0:01:56]} 50. a6 {[%clk 0:01:21]}  Ra1 {[%clk 0:01:55]} 51. a7 {[%clk 0:01:20]}  Kg4 {[%clk 0:01:53]} 52. Rb4+ {[%clk 0:01:20]}  Kg3 {[%clk 0:01:52]} 53. Ra4 {[%clk 0:01:06]}  Rc1+ {[%clk 0:01:51]} 54. Kb6 {[%clk 0:01:06]}  Rc8 {[%clk 0:01:51]} 55. a8=Q {[%clk 0:01:05]}  Rxa8 {[%clk 0:01:51]} 56. Rxa8 {[%clk 0:01:06]}  Kxh4 {[%clk 0:01:52]} 57. Rg8 {[%clk 0:01:04]}  f5 {[%clk 0:01:51]} 58. Kc5 {[%clk 0:01:04]}  f4 {[%clk 0:01:52]} 59. Kd4 {[%clk 0:01:05]}  Kh3 {[%clk 0:01:52]} 60. Ke4 {[%clk 0:01:04]}  h4 {[%clk 0:01:53]} 61. Kxf4 {[%clk 0:01:04]} 1-0


[Site "https://www.chess.com"]

[Event "Titled Tuesday Blitz December 20 Early 2022"]
[White "Husnutdinov, Damir"]
[Black "lamomiajunior"]
[WhiteFideId "14200910"]
[WhiteElo "2415"]
[BlackElo "2526"]
[Result "0-1"]
[Round "01"]
[TimeControl "180+2"]
[Date "2022.12.20"]
[WhiteClock "0:00:10"]
[BlackClock "0:00:28"]

1. d4 {[%clk 0:02:59]}  Nf6 {[%clk 0:03:00]} 2. Nf3 {[%clk 0:02:59]}  d5 {[%clk 0:03:00]} 3. g3 {[%clk 0:03:00]}  Bf5 {[%clk 0:02:59]} 4. Bg2 {[%clk 0:03:00]}  e6 {[%clk 0:02:59]} 5. O-O {[%clk 0:03:01]}  Be7 {[%clk 0:02:57]} 6. c4 {[%clk 0:03:01]}  c6 {[%clk 0:02:57]} 7. Nc3 {[%clk 0:03:01]}  h6 {[%clk 0:02:57]} 8. Nd2 {[%clk 0:03:02]}  O-O {[%clk 0:02:54]} 9. e4 {[%clk 0:03:02]}  dxe4 {[%clk 0:02:53]} 10. Ndxe4 {[%clk 0:03:02]}  Nbd7 {[%clk 0:02:52]} 11. Be3 {[%clk 0:03:00]}  Nxe4 {[%clk 0:02:51]} 12. Nxe4 {[%clk 0:02:57]}  Nf6 {[%clk 0:02:51]} 13. Nc3 {[%clk 0:02:57]}  Qd7 {[%clk 0:02:48]} 14. Qb3 {[%clk 0:02:51]}  Rfd8 {[%clk 0:02:43]} 15. Rfd1 {[%clk 0:02:49]}  a5 {[%clk 0:02:40]} 16. d5 {[%clk 0:01:57]}  cxd5 {[%clk 0:02:11]} 17. cxd5 {[%clk 0:01:54]}  a4 {[%clk 0:01:48]} 18. dxe6 {[%clk 0:01:40]}  Qxd1+ {[%clk 0:01:31]} 19. Qxd1 {[%clk 0:01:39]}  Rxd1+ {[%clk 0:01:31]} 20. Rxd1 {[%clk 0:01:39]}  Bxe6 {[%clk 0:01:31]} 21. Rd2 {[%clk 0:01:06]}  a3 {[%clk 0:01:25]} 22. bxa3 {[%clk 0:00:42]}  Bxa3 {[%clk 0:01:21]} 23. Bxb7 {[%clk 0:00:32]}  Rb8 {[%clk 0:01:21]} 24. Bf3 {[%clk 0:00:23]}  Bb4 {[%clk 0:01:21]} 25. Rb2 {[%clk 0:00:20]}  Rc8 {[%clk 0:00:30]} 26. Rxb4 {[%clk 0:00:20]}  Rxc3 {[%clk 0:00:30]} 27. a4 {[%clk 0:00:19]}  Nd5 {[%clk 0:00:29]} 28. Bxd5 {[%clk 0:00:18]}  Bxd5 {[%clk 0:00:30]} 29. Rd4 {[%clk 0:00:18]}  Bc6 {[%clk 0:00:30]} 30. Rd8+ {[%clk 0:00:17]}  Kh7 {[%clk 0:00:30]} 31. Rd4 {[%clk 0:00:16]}  Ra3 {[%clk 0:00:29]} 32. f4 {[%clk 0:00:14]}  Rxe3 {[%clk 0:00:28]} 33. Rc4 {[%clk 0:00:13]}  Bd5 {[%clk 0:00:28]} 34. Rd4 {[%clk 0:00:12]}  Be6 {[%clk 0:00:28]} 35. a5 {[%clk 0:00:11]}  Ra3 {[%clk 0:00:28]} 36. f5 {[%clk 0:00:10]}  Bxf5 {[%clk 0:00:28]} 37. Rf4 {[%clk 0:00:10]}  Be6 {[%clk 0:00:28]} 0-1


[Site "https://www.chess.com"]

[Event "Titled Tuesday Blitz December 20 Early 2022"]
[White "Imperial, Genghis"]
[Black "Aslanov_Umid"]
[WhiteFideId "5230403"]
[WhiteElo "1812"]
[BlackElo "2425"]
[Result "1-0"]
[Round "01"]
[TimeControl "180+2"]
[Date "2022.12.20"]
[WhiteClock "0:00:16"]
[BlackClock "0:00:26"]

1. e4 {[%clk 0:02:52]}  c5 {[%clk 0:02:58]} 2. Nf3 {[%clk 0:02:51]}  d6 {[%clk 0:02:58]} 3. c3 {[%clk 0:02:50]}  Nf6 {[%clk 0:02:57]} 4. Be2 {[%clk 0:02:49]}  g6 {[%clk 0:02:50]} 5. O-O {[%clk 0:02:48]}  Bg7 {[%clk 0:02:45]} 6. Bb5+ {[%clk 0:02:49]}  Bd7 {[%clk 0:02:44]} 7. Bxd7+ {[%clk 0:02:46]}  Nbxd7 {[%clk 0:02:41]} 8. Qe2 {[%clk 0:02:45]}  O-O {[%clk 0:02:41]} 9. d4 {[%clk 0:02:37]}  cxd4 {[%clk 0:02:42]} 10. cxd4 {[%clk 0:02:38]}  Qa5 {[%clk 0:02:30]} 11. e5 {[%clk 0:02:24]}  Nd5 {[%clk 0:02:12]} 12. e6 {[%clk 0:02:19]}  N7f6 {[%clk 0:02:12]} 13. Ng5 {[%clk 0:02:17]}  h6 {[%clk 0:01:29]} 14. Nxf7 {[%clk 0:02:06]}  Kh7 {[%clk 0:01:30]} 15. Na3 {[%clk 0:01:56]}  Nc7 {[%clk 0:01:22]} 16. Bd2 {[%clk 0:01:49]}  Qf5 {[%clk 0:01:14]} 17. Rfe1 {[%clk 0:01:44]}  Nfd5 {[%clk 0:00:58]} 18. Nc4 {[%clk 0:01:03]}  Bxd4 {[%clk 0:00:45]} 19. Ne3 {[%clk 0:01:01]}  Nxe3 {[%clk 0:00:41]} 20. Bxe3 {[%clk 0:01:01]}  Bxe3 {[%clk 0:00:41]} 21. Qxe3 {[%clk 0:01:02]}  Nxe6 {[%clk 0:00:39]} 22. Nxh6 {[%clk 0:00:51]}  Qf4 {[%clk 0:00:25]} 23. Qxf4 {[%clk 0:00:39]}  Nxf4 {[%clk 0:00:24]} 24. Ng4 {[%clk 0:00:40]}  e5 {[%clk 0:00:25]} 25. Rad1 {[%clk 0:00:40]}  d5 {[%clk 0:00:25]} 26. Nxe5 {[%clk 0:00:38]}  Rae8 {[%clk 0:00:25]} 27. f3 {[%clk 0:00:35]}  d4 {[%clk 0:00:25]} 28. Rxd4 {[%clk 0:00:31]}  Rf5 {[%clk 0:00:25]} 29. Rde4 {[%clk 0:00:31]}  g5 {[%clk 0:00:21]} 30. h3 {[%clk 0:00:29]}  Kg7 {[%clk 0:00:20]} 31. Kh2 {[%clk 0:00:26]}  Rf6 {[%clk 0:00:20]} 32. Ng4 {[%clk 0:00:24]}  Rxe4 {[%clk 0:00:21]} 33. Rxe4 {[%clk 0:00:24]}  Rb6 {[%clk 0:00:22]} 34. b3 {[%clk 0:00:23]}  Kg6 {[%clk 0:00:22]} 35. Ne5+ {[%clk 0:00:22]}  Kf5 {[%clk 0:00:22]} 36. Nc4 {[%clk 0:00:23]}  Ra6 {[%clk 0:00:22]} 37. Re5+ {[%clk 0:00:22]}  Kf6 {[%clk 0:00:23]} 38. a4 {[%clk 0:00:20]}  Rc6 {[%clk 0:00:23]} 39. Re4 {[%clk 0:00:18]}  a6 {[%clk 0:00:22]} 40. h4 {[%clk 0:00:16]}  Ne6 {[%clk 0:00:20]} 41. hxg5+ {[%clk 0:00:16]}  Nxg5 {[%clk 0:00:21]} 42. Rf4+ {[%clk 0:00:16]}  Kg7 {[%clk 0:00:21]} 43. Rg4 {[%clk 0:00:16]}  Kh6 {[%clk 0:00:21]} 44. Ne5 {[%clk 0:00:15]}  Re6 {[%clk 0:00:20]} 45. f4 {[%clk 0:00:15]}  Ne4 {[%clk 0:00:19]} 46. Nf7+ {[%clk 0:00:14]}  Kh7 {[%clk 0:00:19]} 47. f5 {[%clk 0:00:10]}  Rf6 {[%clk 0:00:20]} 48. Rxe4 {[%clk 0:00:10]}  Rxf7 {[%clk 0:00:20]} 49. g4 {[%clk 0:00:10]}  Kh6 {[%clk 0:00:21]} 50. Kg3 {[%clk 0:00:10]}  Kg5 {[%clk 0:00:22]} 51. Re6 {[%clk 0:00:10]}  Rg7 {[%clk 0:00:22]} 52. a5 {[%clk 0:00:09]}  Rg8 {[%clk 0:00:21]} 53. Rg6+ {[%clk 0:00:08]}  Rxg6 {[%clk 0:00:21]} 54. fxg6 {[%clk 0:00:09]}  Kxg6 {[%clk 0:00:22]} 55. Kf4 {[%clk 0:00:10]}  Kf6 {[%clk 0:00:22]} 56. g5+ {[%clk 0:00:10]}  Kg6 {[%clk 0:00:23]} 57. Kg4 {[%clk 0:00:10]}  Kf7 {[%clk 0:00:24]} 58. Kf5 {[%clk 0:00:11]}  Kg7 {[%clk 0:00:25]} 59. g6 {[%clk 0:00:12]}  Kg8 {[%clk 0:00:25]} 60. Kf6 {[%clk 0:00:12]}  Kf8 {[%clk 0:00:26]} 61. g7+ {[%clk 0:00:13]}  Kg8 {[%clk 0:00:26]} 62. Kg6 {[%clk 0:00:14]}  b5 {[%clk 0:00:24]} 63. axb6 {[%clk 0:00:15]}  a5 {[%clk 0:00:25]} 64. b7 {[%clk 0:00:16]}  a4 {[%clk 0:00:26]} 65. b8=Q# {[%clk 0:00:16]} 1-0


[Site "https://www.chess.com"]

[Event "Titled Tuesday Blitz December 20 Early 2022"]
[White "JaloliddinIlkhomi"]
[Black "PattyCastillo"]
[WhiteElo "2533"]
[BlackElo "1827"]
[Result "1-0"]
[Round "01"]
[TimeControl "180+2"]
[Date "2022.12.20"]
[WhiteClock "0:00:35"]
[BlackClock "0:01:23"]

1. d4 {[%clk 0:02:59]}  d5 {[%clk 0:02:59]} 2. Bf4 {[%clk 0:02:58]}  Nf6 {[%clk 0:02:58]} 3. e3 {[%clk 0:02:58]}  c5 {[%clk 0:02:58]} 4. c3 {[%clk 0:02:58]}  Nc6 {[%clk 0:02:58]} 5. Nf3 {[%clk 0:02:57]}  Qb6 {[%clk 0:02:57]} 6. Qc2 {[%clk 0:02:57]}  Bf5 {[%clk 0:02:56]} 7. dxc5 {[%clk 0:02:56]}  Bxc2 {[%clk 0:02:53]} 8. cxb6 {[%clk 0:02:57]}  axb6 {[%clk 0:02:53]} 9. Na3 {[%clk 0:02:57]}  Bg6 {[%clk 0:02:52]} 10. Nb5 {[%clk 0:02:56]}  O-O-O {[%clk 0:02:38]} 11. Ne5 {[%clk 0:02:40]}  e6 {[%clk 0:02:22]} 12. a4 {[%clk 0:02:21]}  Be7 {[%clk 0:02:16]} 13. a5 {[%clk 0:01:50]}  bxa5 {[%clk 0:02:14]} 14. Be2 {[%clk 0:01:34]}  Nh5 {[%clk 0:01:48]} 15. Bxh5 {[%clk 0:01:16]}  Bxh5 {[%clk 0:01:49]} 16. Kd2 {[%clk 0:01:07]}  f6 {[%clk 0:01:47]} 17. Nxc6 {[%clk 0:01:04]}  bxc6 {[%clk 0:01:46]} 18. Nd4 {[%clk 0:01:01]}  e5 {[%clk 0:01:41]} 19. Nxc6 {[%clk 0:01:00]}  Rd7 {[%clk 0:01:37]} 20. Bg3 {[%clk 0:00:55]}  d4 {[%clk 0:01:28]} 21. exd4 {[%clk 0:00:52]}  exd4 {[%clk 0:01:28]} 22. cxd4 {[%clk 0:00:37]}  Bb4+ {[%clk 0:01:27]} 23. Nxb4 {[%clk 0:00:35]}  axb4 {[%clk 0:01:27]} 24. Ra8+ {[%clk 0:00:34]}  Kb7 {[%clk 0:01:23]} 25. Rxh8 {[%clk 0:00:35]} 1-0


[Site "https://www.chess.com"]

[Event "Titled Tuesday Blitz December 20 Early 2022"]
[White "Jasko, Pavel"]
[Black "Begmuratov, Khumoyun"]
[WhiteFideId "980463"]
[BlackFideId "14210207"]
[WhiteElo "1693"]
[BlackElo "2387"]
[Result "0-1"]
[Round "01"]
[TimeControl "180+2"]
[Date "2022.12.20"]
[WhiteClock "0:00:15"]
[BlackClock "0:01:32"]

1. d4 {[%clk 0:02:46]}  Nf6 {[%clk 0:02:59]} 2. c4 {[%clk 0:02:46]}  g6 {[%clk 0:02:56]} 3. g3 {[%clk 0:02:45]}  Bg7 {[%clk 0:02:56]} 4. Bg2 {[%clk 0:02:46]}  O-O {[%clk 0:02:57]} 5. Nf3 {[%clk 0:02:46]}  d6 {[%clk 0:02:57]} 6. Nc3 {[%clk 0:02:46]}  c6 {[%clk 0:02:57]} 7. O-O {[%clk 0:02:46]}  Bf5 {[%clk 0:02:57]} 8. Nh4 {[%clk 0:02:40]}  Bc8 {[%clk 0:02:55]} 9. e4 {[%clk 0:02:40]}  e5 {[%clk 0:02:52]} 10. d5 {[%clk 0:02:32]}  cxd5 {[%clk 0:02:50]} 11. Nxd5 {[%clk 0:02:32]}  Nxd5 {[%clk 0:02:49]} 12. cxd5 {[%clk 0:02:32]}  f5 {[%clk 0:02:45]} 13. f4 {[%clk 0:02:18]}  exf4 {[%clk 0:02:42]} 14. Bxf4 {[%clk 0:02:17]}  g5 {[%clk 0:02:39]} 15. Nxf5 {[%clk 0:01:38]}  Bxf5 {[%clk 0:02:32]} 16. exf5 {[%clk 0:01:37]}  gxf4 {[%clk 0:02:32]} 17. Rxf4 {[%clk 0:01:37]}  Nd7 {[%clk 0:02:32]} 18. Qb3 {[%clk 0:01:31]}  Nc5 {[%clk 0:02:24]} 19. Qf3 {[%clk 0:01:28]}  Qf6 {[%clk 0:02:22]} 20. Rf1 {[%clk 0:01:15]}  Rae8 {[%clk 0:02:08]} 21. g4 {[%clk 0:01:14]}  Bh6 {[%clk 0:01:59]} 22. Rb4 {[%clk 0:01:13]}  Re3 {[%clk 0:01:52]} 23. Qd1 {[%clk 0:01:12]}  Nd3 {[%clk 0:01:39]} 24. Rxb7 {[%clk 0:01:10]}  Qd4 {[%clk 0:01:37]} 25. Qa4 {[%clk 0:00:15]}  Qxa4 {[%clk 0:01:32]} 0-1


[Site "https://www.chess.com"]

[Event "Titled Tuesday Blitz December 20 Early 2022"]
[White "Karjakin, Sergey"]
[Black "guillembaches"]
[WhiteFideId "14109603"]
[WhiteElo "2747"]
[BlackElo "2464"]
[Result "1-0"]
[Round "01"]
[TimeControl "180+2"]
[Date "2022.12.20"]
[WhiteClock "0:00:45"]
[BlackClock "0:00:09"]

1. d4 {[%clk 0:02:57]}  Nf6 {[%clk 0:02:59]} 2. c4 {[%clk 0:02:56]}  e6 {[%clk 0:03:00]} 3. Nc3 {[%clk 0:02:55]}  d5 {[%clk 0:03:00]} 4. cxd5 {[%clk 0:02:53]}  Nxd5 {[%clk 0:03:01]} 5. e4 {[%clk 0:02:53]}  Nxc3 {[%clk 0:03:01]} 6. bxc3 {[%clk 0:02:54]}  c5 {[%clk 0:03:02]} 7. Rb1 {[%clk 0:02:51]}  Be7 {[%clk 0:02:55]} 8. Nf3 {[%clk 0:02:50]}  O-O {[%clk 0:02:54]} 9. Bd3 {[%clk 0:02:47]}  b6 {[%clk 0:02:45]} 10. O-O {[%clk 0:02:40]}  Bb7 {[%clk 0:02:45]} 11. Qe2 {[%clk 0:02:40]}  Nc6 {[%clk 0:02:42]} 12. d5 {[%clk 0:02:28]}  exd5 {[%clk 0:02:36]} 13. e5 {[%clk 0:02:28]}  Qd7 {[%clk 0:02:22]} 14. Rd1 {[%clk 0:02:28]}  Rad8 {[%clk 0:02:18]} 15. Bf4 {[%clk 0:02:27]}  h6 {[%clk 0:02:14]} 16. Qc2 {[%clk 0:02:25]}  Bc8 {[%clk 0:02:00]} 17. h3 {[%clk 0:02:26]}  Rfe8 {[%clk 0:01:49]} 18. Re1 {[%clk 0:02:23]}  c4 {[%clk 0:01:45]} 19. Bh7+ {[%clk 0:02:16]}  Kh8 {[%clk 0:01:43]} 20. Rbd1 {[%clk 0:02:16]}  Bc5 {[%clk 0:01:29]} 21. Nd4 {[%clk 0:02:04]}  Nxd4 {[%clk 0:01:13]} 22. cxd4 {[%clk 0:02:04]}  Bb4 {[%clk 0:01:13]} 23. Re3 {[%clk 0:02:04]}  g6 {[%clk 0:01:06]} 24. Bxg6 {[%clk 0:01:44]}  fxg6 {[%clk 0:01:07]} 25. Qxg6 {[%clk 0:01:44]}  Qe6 {[%clk 0:01:05]} 26. Qh5 {[%clk 0:01:43]}  Bf8 {[%clk 0:00:56]} 27. Rf3 {[%clk 0:01:34]}  Bg7 {[%clk 0:00:51]} 28. Bg5 {[%clk 0:01:26]}  Rd7 {[%clk 0:00:40]} 29. Bf6 {[%clk 0:01:11]}  Kh7 {[%clk 0:00:40]} 30. Rg3 {[%clk 0:01:04]}  Bxf6 {[%clk 0:00:33]} 31. Rg6 {[%clk 0:00:53]}  Bg7 {[%clk 0:00:28]} 32. Rxe6 {[%clk 0:00:53]}  Rxe6 {[%clk 0:00:29]} 33. f4 {[%clk 0:00:54]}  Rg6 {[%clk 0:00:23]} 34. f5 {[%clk 0:00:53]}  Rg5 {[%clk 0:00:23]} 35. Qf3 {[%clk 0:00:53]}  Rf7 {[%clk 0:00:21]} 36. f6 {[%clk 0:00:54]}  Bf8 {[%clk 0:00:18]} 37. Qxd5 {[%clk 0:00:50]}  Kg8 {[%clk 0:00:17]} 38. Qxc4 {[%clk 0:00:48]}  Bxh3 {[%clk 0:00:17]} 39. Rd2 {[%clk 0:00:47]}  b5 {[%clk 0:00:10]} 40. Qb3 {[%clk 0:00:45]}  Bf5 {[%clk 0:00:10]} 41. e6 {[%clk 0:00:44]}  Bxe6 {[%clk 0:00:09]} 42. Qxe6 {[%clk 0:00:45]}  Rg6 {[%clk 0:00:09]} 43. Rf2 {[%clk 0:00:45]} 1-0


[Site "https://www.chess.com"]